Cogmind - Beta 11 X7 *** ADVENTURER MODE // 2021.10.06 @ 11:06:58 Player: arctifire Result: Self-destructed Performance ------------- Evolutions (2) 1000 Regions Visited (8) 1600 Robots Destroyed (39) 195 Value Destroyed (1113) 1113 Prototype IDs (24) 480 Alien Tech Used (0) 0 Bonus (300) 300 TOTAL SCORE: 4688 Bonus ------- Aligned with FarCom 300 Cogmind --------- Core Integrity 251/550 Matter 300/300 Energy 86/100 System Corruption 50% Temperature Cool (0) Movement Core (100) Ox1 Location -8/Storage Parts ------- > --- POWER (1) -------- (None) > --- PROPULSION (3) --- (None) > --- UTILITY (3) ------ Small Storage Unit > --- WEAPON (4) ------- (None) > --- INVENTORY (8) ---- Cooled Ion Engine Improved Sensor Array Proton Missile Launcher Proton Missile Launcher Longsword +1 Peak State ------------ > --- POWER ------------ Light Nuclear Core > --- PROPULSION ------- Aluminum Leg Compact Wheel > --- UTILITY ---------- Small Storage Unit Medium Storage Unit Recoil Stabilizer > --- WEAPON ----------- Heavy Particle Cannon Gauss Rifle AWS/Gauss > --- INVENTORY -------- Cooled Ion Engine Improved Sensor Array Modified TNC Proton Missile Launcher Proton Missile Launcher Proton Missile Launcher Longsword +1 [Rating: 36] Favorites ----------- Power Cooled Ion Engine Engine Cooled Ion Engine Power Core Light Nuclear Core Propulsion Aluminum Leg Leg Aluminum Leg Wheel Compact Wheel Utility Small Storage Unit Device Cooling System Storage Small Storage Unit Protection Improved Weapon Shielding Weapon Heavy Particle Cannon Energy Gun EM Shotgun Energy Cannon Heavy Particle Cannon Ballistic Gun AWS/Gauss Launcher Proton Missile Launcher Build | -11 -10 -10 -9 -9 -9 -8 -8 -8 ------- Run | Scr Mat Min Mat Min Exi Min Mat Sto Slots Evolved 4 | . . . 2 . . . 2 . Power . | . . . . . . . . . Propulsion 1 | . . . . . . . 1 . Utility 1 | . . . . . . . 1 . Weapon 2 | . . . 2 . . . . . Parts Attached 26 | . . 4 3 . 3 1 5 10 Power 4 | . . . 1 . 1 . 1 1 Engine 3 | . . . 1 . 1 . 1 . Core 1 | . . . . . . . . 1 Reactor . | . . . . . . . . . Propulsion 3 | . . . . . . . 1 2 Treads . | . . . . . . . . . Leg 2 | . . . . . . . 1 1 Wheel 1 | . . . . . . . . 1 Hover . | . . . . . . . . . Flight . | . . . . . . . . . Utility 8 | . . 1 1 . 1 . 1 4 Device 4 | . . . 1 . . . 1 2 Storage 2 | . . . . . . . . 2 Processor . | . . . . . . . . . Hackware . | . . . . . . . . . Protection 2 | . . 1 . . 1 . . . Artifact . | . . . . . . . . . Weapon 11 | . . 3 1 . 1 1 2 3 Energy Gun 1 | . . . 1 . . . . . Energy Cannon 3 | . . 2 . . . 1 . . Ballistic Gun 3 | . . . . . 1 . . 2 Ballistic Cannon . | . . . . . . . . . Launcher 4 | . . 1 . . . . 2 1 Special Weapon . | . . . . . . . . . Impact Weapon . | . . . . . . . . . Slashing Weapon . | . . . . . . . . . Piercing Weapon . | . . . . . . . . . Special Melee Weapon . | . . . . . . . . . Unidentified Prototypes 1 | . . . 1 . . . . . Corrupted Parts 6 | . . . . . . . . 6 System Corruption 49 | . . . . . . . . 49 Parts Lost 15 | . . . . . . . 1 14 Power 2 | . . . . . . . . 2 Propulsion 5 | . . . . . . . 1 4 Utility 4 | . . . . . . . . 4 Weapon 4 | . . . . . . . . 4 Highest Loss Streak 9 | . . . . . . . 1 9 Average Slot Usage (%) 83 | . 85 92 79 88 88 88 73 49 Engine 10 | . 14 14 11 11 11 11 9 3 Leg 21 | . 28 28 22 22 22 22 16 9 Device 4 | . . . . 11 5 . 7 2 Storage 10 | . 14 14 11 11 11 11 9 9 Protection 6 | . . 8 10 . 5 11 9 . Energy Gun 3 | . . . 2 11 5 . . . Energy Cannon 19 | . . 11 22 22 22 22 18 7 Ballistic Gun 5 | . 28 9 . . 5 11 1 8 Naked Turns . | . . . . . . . . . Heaviest Build 41 | 12 12 22 30 30 37 37 40 41 Greatest Support 20 | 20 20 20 20 20 20 20 20 20 Greatest Overweight (x) 5 | . . 1 1 1 1 1 2 5 Average Overweight (x) . | . . . 1 1 1 1 1 1 Largest Inventory Capacity 10 | 8 8 8 8 8 8 8 8 10 Average Capacity 8 | 8 8 8 8 8 8 8 8 8 Most Carried 8 | 6 7 8 8 8 8 8 8 8 Average Carried 7 | 6 6 7 7 7 7 8 7 6 Final Capacity 8 | 8 8 8 8 8 8 8 8 8 Final Carried 8 | 6 7 7 8 8 8 8 8 5 Class Distribution -------------------- 31% | Gunner 30% | Skirmisher 24% | Mutant 11% | Tank Dominant Class ---------------- Mutant | -10/Materials Mutant | -10/Mines Mutant | -9/Materials Gunner | -9/Mines Gunner | -9/Exiles Skirmisher | -8/Mines Mutant | -8/Materials Mutant | -8/Storage Resources | -11 -10 -10 -9 -9 -9 -8 -8 -8 ----------- Run | Scr Mat Min Mat Min Exi Min Mat Sto Matter Collected 453 | 200 18 40 30 . . 40 25 100 Remotely . | . . . . . . . . . Salvage Created 1749 | . 48 40 461 445 . 259 234 262 Parts 85 | . 2 1 22 13 . 20 10 17 Haulers Intercepted 5 | . 1 . 4 . . . . . Recyclers Shooed 1 | . . . . . . 1 . . Parts Field Recycled . | . . . . . . . . . Retrieved Matter . | . . . . . . . . . Parts Self-Destructed . | . . . . . . . . . Prevented . | . . . . . . . . . Kills | -11 -10 -10 -9 -9 -9 -8 -8 -8 ------- Run | Scr Mat Min Mat Min Exi Min Mat Sto Combat Hostiles Destroyed 42 | . . 1 5 19 . 9 4 4 Guns 11 | . . . . 2 . 7 . 2 Cannons 29 | . . 1 5 16 . 2 4 1 AOE 1 | . . . . . . . . 1 Classes Destroyed 12 | . 1 1 1 6 . . 1 2 Worker 2 | . . . . 1 . 1 . . Tunneler 1 | . . . . 1 . . . . Hauler 5 | . 1 . 4 . . . . . Watcher 2 | . . . . . . . 1 1 Swarmer 9 | . . . . 3 . 6 . . Grunt 11 | . . 1 1 1 . 3 3 2 Brawler 1 | . . . . 1 . . . . Sentry 5 | . . . 4 . . . 1 . Demolisher 1 | . . . . 1 . . . . Hunter 1 | . . . . . . . . 1 Heavy 1 | . . . . . . . . 1 Assembled 13 | . . . . 13 . . . . Best Kill Streak 6 | . 1 1 2 6 . 3 3 4 Combat Bots Only 5 | . . 1 1 5 . 3 3 3 Max Kills in Single Turn 2 | . 1 1 1 2 . 1 1 1 Gunslinging . | . . . . . . . . . Exploded 1 | . . . . . . . . 1 Melee . | . . . . . . . . . Uniques/NPCs Destroyed . | . . . . . . . . . Combat | -11 -10 -10 -9 -9 -9 -8 -8 -8 -------- Run | Scr Mat Min Mat Min Exi Min Mat Sto Damage Taken 2065 | . . 56 81 304 . 97 227 1300 Core 448 | . . 34 11 76 . 28 50 249 Absorbed by Shields . | . . . . . . . . . Core Remaining (%) 85 | 100 . 86 . . . 71 . . Volleys Fired 76 | . 3 5 14 30 . 7 12 5 Largest 3 | . 2 1 3 3 . 2 2 3 Hottest 195 | . 40 75 195 195 . 150 150 189 Shots Fired 224 | . 6 5 32 83 . 44 25 29 Gun 85 | . 6 . 4 23 . 30 1 21 Cannon 133 | . . 4 28 60 . 14 24 3 Launcher 6 | . . 1 . . . . . 5 Special . | . . . . . . . . . Kinetic 58 | . 6 . . . . 30 1 21 Thermal 133 | . . 4 28 60 . 14 24 3 Explosive 1 | . . 1 . . . . . . Electromagnetic 32 | . . . 4 23 . . . 5 Robot Hit Streak 18 | . 4 6 13 14 . 8 5 18 Robot Miss Streak 3 | . 1 . 1 3 . 2 2 1 Penetration Max . | . . . . . . . . . Secondary Targets . | . . . . . . . . . Autonomous 53 | . . . . . . 30 1 22 Shots Hit Robots 158 | . 5 5 25 53 . 31 15 24 Core Hits 77 | . 2 2 12 33 . 11 8 9 Critical Kills 1 | . . . . 1 . . . . Critical Parts Destroyed . | . . . . . . . . . Critical Strikes 1 | . . . . 1 . . . . Meltdown 1 | . . . . 1 . . . . Melee Attacks . | . . . . . . . . . Impact . | . . . . . . . . . Slashing . | . . . . . . . . . Piercing . | . . . . . . . . . Sneak Attacks . | . . . . . . . . . Combat Hostiles . | . . . . . . . . . Follow-up Attacks . | . . . . . . . . . Damage Inflicted 3830 | . 63 186 603 1081 . 866 379 652 Guns 1492 | . 63 . 53 228 . 666 29 453 Cannons 2140 | . . 115 550 850 . 200 350 75 Explosions 195 | . . 71 . . . . . 124 Melee . | . . . . . . . . . Ramming 3 | . . . . 3 . . . . Kinetic 1211 | . 63 . . . . 666 29 453 Thermal 2125 | . . 100 550 850 . 200 350 75 Explosive 71 | . . 71 . . . . . . Electromagnetic 405 | . . . 53 228 . . . 124 Impact 15 | . . 15 . . . . . . Slashing . | . . . . . . . . . Piercing . | . . . . . . . . . Highest Corruption 50 | . . . . . . . . 50 Average Corruption 28 | . . . . . . . . 28 Corruption Purged . | . . . . . . . . . Effects 10 | . . . . . . . . 10 Message Errors 3 | . . . . . . . . 3 Matter Fused 1 | . . . . . . . . 1 Heat Flow Errors 2 | . . . . . . . . 2 Energy Discharges 1 | . . . . . . . . 1 Misdirections 3 | . . . . . . . . 3 Overload Shots . | . . . . . . . . . Overflow Damage 19 | . . . . 19 . . . . Projectiles 19 | . . . . 19 . . . . Explosions . | . . . . . . . . . Melee . | . . . . . . . . . Knockbacks . | . . . . . . . . . Impact . | . . . . . . . . . Kinetic . | . . . . . . . . . Secondary . | . . . . . . . . . Self-Inflicted Damage 70 | . . . . . . . . 70 Shots 4 | . . . . . . . . 4 Rammed . | . . . . . . . . . Targets Rammed 1 | . . . . 1 . . . . Kicked 1 | . . . . 1 . . . . Crushed . | . . . . . . . . . Highest Temperature 289 | . . 163 289 276 . 279 99 275 Average Temperature 82 | . . 89 102 67 . 99 41 98 Received Heat Transfer 762 | . . 36 45 6 . 54 135 486 Effects 4 | . . . . 4 . . . . Energy Bleed 1 | . . . . 1 . . . . Interference 3 | . . . . 3 . . . . Siege Activations . | . . . . . . . . . Robots Corrupted . | . . . . . . . . . Combat Hostiles . | . . . . . . . . . Parts Fried . | . . . . . . . . . Impact Corruptions . | . . . . . . . . . Robots Melted 1 | . . . . 1 . . . . Combat Hostiles 1 | . . . . 1 . . . . Parts Melted 4 | . . 1 1 . . 1 1 . Heat Transferred 3145 | . . 148 814 1258 . 296 518 111 Parts Sabotaged . | . . . . . . . . . Parts Stolen . | . . . . . . . . . Parts Stripped . | . . . . . . . . . Power Chain Reactions 1 | . . . . . . . . 1 Missiles Intercepted . | . . . . . . . . . Alert | -11 -10 -10 -9 -9 -9 -8 -8 -8 ------- Run | Scr Mat Min Mat Min Exi Min Mat Sto Peak Influence 219 | . 35 41 219 192 . 85 161 157 Initial 57 | . . 11 13 18 . . 26 57 Average 61 | . 26 18 71 90 . 25 102 100 Maximum Alert Level 1 | . . . 1 . . . . . Low Security (%) 99 | 100 100 100 98 100 . 100 100 100 Level 1 . | . . . 1 . . . . . Level 2 . | . . . . . . . . . Level 3 . | . . . . . . . . . Level 4 . | . . . . . . . . . Level 5 . | . . . . . . . . . High Security . | . . . . . . . . . Max Security . | . . . . . . . . . Squads Dispatched 4 | . . . . . . . 1 3 Investigation . | . . . . . . . . . Extermination . | . . . . . . . . . Reinforcement 2 | . . . . . . . 1 1 Assault . | . . . . . . . . . Garrison 2 | . . . . . . . . 2 Intercept . | . . . . . . . . . Construction Impeded . | . . . . . . . . . Haulers Reinforced . | . . . . . . . . . Active Scanning Responses . | . . . . . . . . . Cargo Convoy Interrupts . | . . . . . . . . . Stealth | -11 -10 -10 -9 -9 -9 -8 -8 -8 --------- Run | Scr Mat Min Mat Min Exi Min Mat Sto Distress Signals 3 | . . . 2 . . . . 1 Communications Jammed . | . . . . . . . . . Distress Signals . | . . . . . . . . . Times Spotted 60 | . 2 1 11 22 . 8 6 10 Peak Tracking Total 8 | . 2 1 5 5 . 3 3 8 Tactical Retreats 2 | . . . . 2 . . . . Traps | -11 -10 -10 -9 -9 -9 -8 -8 -8 ------- Run | Scr Mat Min Mat Min Exi Min Mat Sto Traps Triggered 3 | . . . . . . . . 3 Indirectly . | . . . . . . . . . Trap Hack Attempts . | . . . . . . . . . Triggered . | . . . . . . . . . Disarmed . | . . . . . . . . . Reprogrammed . | . . . . . . . . . Reused . | . . . . . . . . . Traps Extracted . | . . . . . . . . . Installed . | . . . . . . . . . Triggered . | . . . . . . . . . Machines | -11 -10 -10 -9 -9 -9 -8 -8 -8 ---------- Run | Scr Mat Min Mat Min Exi Min Mat Sto Machines Disabled 3 | . . . . 1 . 1 . 1 Max in Single Turn 1 | . . . . 1 . 1 . 1 Machines Sabotaged . | . . . . . . . . . Garrisons Compromised . | . . . . . . . . . Overloaded Fab Kills . | . . . . . . . . . Fab Network Shutdowns . | . . . . . . . . . Hacking | -11 -10 -10 -9 -9 -9 -8 -8 -8 --------- Run | Scr Mat Min Mat Min Exi Min Mat Sto Machines Accessed 3 | . 1 1 . . 1 . . . Terminals 1 | . 1 . . . . . . . Fabricators . | . . . . . . . . . Repair Stations . | . . . . . . . . . Recycling Units . | . . . . . . . . . Scanalyzers . | . . . . . . . . . Garrison Access . | . . . . . . . . . Total Hacks 6 | . 4 1 . . 1 . . . Successful 5 | . 3 1 . . 1 . . . Failed 1 | . 1 . . . . . . . Catastrophic . | . . . . . . . . . Database Lockouts . | . . . . . . . . . Manual 2 | . 1 . . . 1 . . . Terminals 4 | . 4 . . . . . . . Fabricators . | . . . . . . . . . Repair Stations . | . . . . . . . . . Recycling Units . | . . . . . . . . . Scanalyzers . | . . . . . . . . . Garrison Access . | . . . . . . . . . Terminal Hacks 5 | . 3 1 . . 1 . . . Open Door 1 | . . 1 . . . . . . Branch Access Points 1 | . 1 . . . . . . . Hauler Manifests 1 | . 1 . . . . . . . Registered Components 1 | . 1 . . . . . . . EX-Prototype ID Bank 1 | . . . . . 1 . . . Fabricator Hacks . | . . . . . . . . . Repair Station Hacks . | . . . . . . . . . Recycling Unit Hacks . | . . . . . . . . . Scanalyzer . | . . . . . . . . . Garrison Access Hacks . | . . . . . . . . . Unauthorized Hacks . | . . . . . . . . . Terminals . | . . . . . . . . . Fabricators . | . . . . . . . . . Repair Stations . | . . . . . . . . . Recycling Units . | . . . . . . . . . Scanalyzers . | . . . . . . . . . Garrison Access . | . . . . . . . . . Data Cores Recovered . | . . . . . . . . . Used . | . . . . . . . . . Hacking Detections 1 | . 1 . . . . . . . Full Trace Events . | . . . . . . . . . Feedback Events . | . . . . . . . . . Feedback Blocked . | . . . . . . . . . Robot Schematics Acquired . | . . . . . . . . . Robots Built . | . . . . . . . . . Matter . | . . . . . . . . . Time . | . . . . . . . . . Total Robot Build Rating . | . . . . . . . . . Part Schematics Acquired . | . . . . . . . . . Parts Built . | . . . . . . . . . Matter . | . . . . . . . . . Time . | . . . . . . . . . Total Part Build Rating . | . . . . . . . . . Parts Repaired . | . . . . . . . . . Time . | . . . . . . . . . Parts Recycled . | . . . . . . . . . Recycled Matter . | . . . . . . . . . Retrieved Matter . | . . . . . . . . . Retrieved Components . | . . . . . . . . . Parts Scanalyzed . | . . . . . . . . . Part Schematics Acquired . | . . . . . . . . . Parts Damaged . | . . . . . . . . . Bothacking | -11 -10 -10 -9 -9 -9 -8 -8 -8 ------------ Run | Scr Mat Min Mat Min Exi Min Mat Sto Used RIF Installer . | . . . . . . . . . Robots Hacked . | . . . . . . . . . Non-combat . | . . . . . . . . . Combat . | . . . . . . . . . Robot Hacks Applied . | . . . . . . . . . Relay Couplers Released . | . . . . . . . . . Robots Rewired . | . . . . . . . . . Allies Hacked . | . . . . . . . . . Hacks Repelled . | . . . . . . . . . Allies | -11 -10 -10 -9 -9 -9 -8 -8 -8 -------- Run | Scr Mat Min Mat Min Exi Min Mat Sto Total Allies . | . . . . . . . . . Largest Group . | . . . . . . . . . Highest-Rated Group . | . . . . . . . . . Highest-Rated Ally . | . . . . . . . . . Total Orders . | . . . . . . . . . Ally Attacks . | . . . . . . . . . Total Damage . | . . . . . . . . . Kills . | . . . . . . . . . Allies Corrupted . | . . . . . . . . . Allies Melted . | . . . . . . . . . Intel | -11 -10 -10 -9 -9 -9 -8 -8 -8 ------- Run | Scr Mat Min Mat Min Exi Min Mat Sto Robot Analysis Total . | . . . . . . . . . Derelict Logs Recovered 1 | . . . . 1 . . . . Drone Launches . | . . . . . . . . . Drone Recoveries . | . . . . . . . . . Exploration | -11 -10 -10 -9 -9 -9 -8 -8 -8 ------------- Run | Scr Mat Min Mat Min Exi Min Mat Sto Turns Passed 3434 | 2 72 152 482 739 580 949 197 261 Spaces Moved 1620 | 2 52 104 215 316 287 454 74 116 Core 12 | . . . . . . . . 12 Treads . | . . . . . . . . . Legs 1573 | 2 52 104 215 316 287 454 74 69 Wheels 35 | . . . . . . . . 35 Hover . | . . . . . . . . . Flight . | . . . . . . . . . Fastest Speed 100 | 120 120 120 200 200 200 200 200 100 Average Speed 193 | 120 120 130 200 200 200 200 205 198 Slowest Speed 440 | 120 120 200 200 200 200 200 280 440 Overloaded Moves . | . . . . . . . . . Propulsion Burnouts . | . . . . . . . . . Robots Hopped . | . . . . . . . . . Cave-ins Triggered . | . . . . . . . . . Exploration Rate (%) 36 | 2 19 27 25 70 62 90 8 23 Regions Visited 8 Branch Regions 5 Pre-discovered Areas . | . . . . . . . . . Known Exits Taken 2 | . 1 . . . . 1 . . Unknown Exits Taken 6 | 1 . 1 1 1 1 . 1 . Scrap Searched 3 | . . 1 . 1 . 1 . . Spaces Dug . | . . . . . . . . . Terrain Destroyed 72 | . . 4 4 22 . 24 8 10 Melee . | . . . . . . . . . Projectile 61 | . . . 4 22 . 24 8 3 AOE 11 | . . 4 . . . . . 7 Terrain Rammed . | . . . . . . . . . Walls Destroyed . | . . . . . . . . . Machines Disabled . | . . . . . . . . . Actions | -11 -10 -10 -9 -9 -9 -8 -8 -8 --------- Run | Scr Mat Min Mat Min Exi Min Mat Sto Total 1777 | 1 55 117 239 357 294 483 96 135 Wait 33 | . . . 3 9 . 21 . . Move 1612 | 1 51 103 214 315 286 453 73 116 Hop . | . . . . . . . . . Pick Up 10 | . 1 2 2 1 2 . 2 . Fast Attach 18 | . . 3 2 . 1 . 3 9 Attach 4 | . . 1 1 . . . 1 1 Detach 3 | . . . 1 . . . 1 1 Swap 4 | . . . . . 2 1 1 . Drop 16 | . . 3 2 1 3 1 3 3 Fire 76 | . 3 5 14 30 . 7 12 5 Melee . | . . . . . . . . . Ram . | . . . . . . . . . Kick 1 | . . . . 1 . . . . Crush . | . . . . . . . . . Escape Stasis . | . . . . . . . . . Rewire . | . . . . . . . . . Trap . | . . . . . . . . . Miscellaneous . | . . . . . . . . . Route ------- -11/Scrapyard -10/Materials -10/Mines -9/Materials (discovered 2 exits: *Mat / [*Min]) -9/Mines (discovered 3 exits: *Mat x2 / *Exi) -9/Exiles -8/Mines -8/Materials -8/Storage History --------- Turn | Location | Event 1 | -11/Scrapyard | Discovered new exit (range 1) 3 | -11/Scrapyard | Entered Materials 19 | -10/Materials | Identified exit to Mines 75 | -10/Materials | Entered Mines 110 | -10/Mines | Met a Derelict who couldn't figure out how to use a Trap Extractor 199 | -10/Mines | Discovered new exit (range 14) 227 | -10/Mines | Entered Materials 227 | -9/Materials | Evolved 2 slots: Weapon x2 316 | -9/Materials | Build established: Mutant 499 | -9/Materials | Discovered new exit (range 4) 689 | -9/Materials | Discovered new exit (range 9) 709 | -9/Materials | Entered Mines 710 | -9/Mines | Assembled infested the area 714 | -9/Mines | Met a Derelict bent on vengeance 759 | -9/Mines | Identified exit to Materials 854 | -9/Mines | Discovered exit to Materials (range 5) 976 | -9/Mines | Build established: Gunner 1434 | -9/Mines | Deemed a non-threat by the Exiles lab entrance 1436 | -9/Mines | Discovered new exit (range 5) 1448 | -9/Mines | Entered Exiles 1496 | -9/Exiles | Met 8R-AWN 1534 | -9/Exiles | Met EX-HEX 1624 | -9/Exiles | Met EX-BIN 1658 | -9/Exiles | Aligned with FarCom system 1660 | -9/Exiles | Given EX-Vault access code 1720 | -9/Exiles | Opened EX-Vault 1749 | -9/Exiles | Found AWS/Gauss 1764 | -9/Exiles | Found Longsword +1 1774 | -9/Exiles | Found Modified TNC 1820 | -9/Exiles | Warned to stay clear of 0b10 Research branches 1890 | -9/Exiles | Met EX-DEC 2010 | -9/Exiles | Discovered new exit (range 11) 2028 | -9/Exiles | Stole three prototypes: AWS/Gauss, Modified TNC, Longsword +1 2028 | -9/Exiles | Entered Mines 2331 | -8/Mines | Build established: Skirmisher 2961 | -8/Mines | Discovered exit to Materials (range 5) 2977 | -8/Mines | Entered Materials 2977 | -8/Materials | Evolved 2 slots: Propulsion x1, Utility x1 3063 | -8/Materials | Discovered new exit (range 13) 3174 | -8/Materials | Entered Storage 3226 | -8/Storage | Lost 4 parts (1n2u1w) 3259 | -8/Storage | Garrison activated, responded to threat 3285 | -8/Storage | System corruption reached 10% 3368 | -8/Storage | System corruption reached 30% 3433 | -8/Storage | Core integrity fell below 50% 3435 | -8/Storage | Self-destructed Last Messages --------------- 03379_ Acquired Corrupted Sml. Storage Unit. 03379_ Integrated Corrupted Sml. Storage Unit (+4). [Achievement: Z1$+NX3F=JRE3_ZNQR] 03380_ Recoil Stabilizer destroyed. 03380_ Acquired 25 matter. 03381_ U-05 Engineer builds a Wall. 03382_ R-06 Scavenger collects Lgt. Treads. 03386_ System corrupted: Matter fused (-6). 03386_ Gauss Rifle destroyed. 03386_ R-06 Scavenger collects Reactive Plating. 03389_ A-02 Transporter destroyed. 03391_ K-01 Serf collects debris. 03402_ EDQOTH